[Event "Titled Tuesday Blitz June 14 Late 2022"]
[White "Boder, Jan"]
[Black "Isajevsky, Anton"]
[WhiteFideId "16243226"]
[BlackFideId "4142500"]
[WhiteElo "2064"]
[BlackElo "2510"]
[Result "0-1"]
[Round "07"]
[TimeControl "180+1"]
[Date "2022.06.15"]
[WhiteClock "0:00:12"]
[BlackClock "0:00:06"]

1. e4 {[%clk 0:02:56]}  c5 {[%clk 0:02:56]} 2. Nf3 {[%clk 0:02:56]}  d6 {[%clk 0:02:56]} 3. Bb5+ {[%clk 0:02:55]}  Nd7 {[%clk 0:02:56]} 4. c4 {[%clk 0:02:54]}  Nf6 {[%clk 0:02:54]} 5. Nc3 {[%clk 0:02:54]}  e6 {[%clk 0:02:46]} 6. O-O {[%clk 0:02:54]}  Be7 {[%clk 0:02:45]} 7. d4 {[%clk 0:02:53]}  cxd4 {[%clk 0:02:45]} 8. Nxd4 {[%clk 0:02:54]}  O-O {[%clk 0:02:45]} 9. Be3 {[%clk 0:02:52]}  Nc5 {[%clk 0:02:39]} 10. f3 {[%clk 0:02:49]}  a6 {[%clk 0:02:32]} 11. Ba4 {[%clk 0:02:49]}  Qc7 {[%clk 0:02:23]} 12. Bc2 {[%clk 0:02:46]}  b6 {[%clk 0:02:19]} 13. b4 {[%clk 0:02:45]}  Ncd7 {[%clk 0:02:19]} 14. Bb3 {[%clk 0:02:44]}  Bb7 {[%clk 0:02:17]} 15. a4 {[%clk 0:02:28]}  Ne5 {[%clk 0:01:56]} 16. Qe2 {[%clk 0:02:11]}  d5 {[%clk 0:00:52]} 17. exd5 {[%clk 0:02:10]}  Bxb4 {[%clk 0:00:51]} 18. Ne4 {[%clk 0:01:32]}  Nxe4 {[%clk 0:00:46]} 19. fxe4 {[%clk 0:01:33]}  Rac8 {[%clk 0:00:46]} 20. Rac1 {[%clk 0:01:28]}  Bc5 {[%clk 0:00:43]} 21. Nf3 {[%clk 0:01:15]}  Nxf3+ {[%clk 0:00:38]} 22. Rxf3 {[%clk 0:01:12]}  Qe5 {[%clk 0:00:37]} 23. Bxc5 {[%clk 0:01:10]}  Rxc5 {[%clk 0:00:37]} 24. Re1 {[%clk 0:01:02]}  f6 {[%clk 0:00:31]} 25. Qd3 {[%clk 0:00:56]}  Rd8 {[%clk 0:00:23]} 26. Rfe3 {[%clk 0:00:55]}  a5 {[%clk 0:00:19]} 27. Qe2 {[%clk 0:00:53]}  Ba6 {[%clk 0:00:19]} 28. Rc1 {[%clk 0:00:40]}  Rdc8 {[%clk 0:00:17]} 29. g3 {[%clk 0:00:18]}  Qd4 {[%clk 0:00:14]} 30. Kg2 {[%clk 0:00:18]}  Qe5 {[%clk 0:00:10]} 31. Qf1 {[%clk 0:00:16]}  exd5 {[%clk 0:00:10]} 32. Qd3 {[%clk 0:00:07]}  dxc4 {[%clk 0:00:09]} 33. Qb1 {[%clk 0:00:02]}  cxb3 {[%clk 0:00:09]} 34. Qxb3+ {[%clk 0:00:03]}  Kh8 {[%clk 0:00:09]} 35. Rxc5 {[%clk 0:00:01]}  Qxc5 {[%clk 0:00:08]} 36. Re1 {[%clk 0:00:01]}  Bb7 {[%clk 0:00:09]} 37. Kh3 {[%clk 0:00:01]}  Re8 {[%clk 0:00:08]} 38. e5 {[%clk 0:00:01]}  fxe5 {[%clk 0:00:07]} 39. Qe3 {[%clk 0:00:01]}  Qxe3 {[%clk 0:00:07]} 40. Rxe3 {[%clk 0:00:02]}  g6 {[%clk 0:00:07]} 41. g4 {[%clk 0:00:02]}  Re7 {[%clk 0:00:08]} 42. Kg3 {[%clk 0:00:03]}  Kg7 {[%clk 0:00:08]} 43. Re1 {[%clk 0:00:04]}  Bc6 {[%clk 0:00:09]} 44. h4 {[%clk 0:00:05]}  Bxa4 {[%clk 0:00:09]} 45. Rb1 {[%clk 0:00:05]}  b5 {[%clk 0:00:08]} 46. Rb2 {[%clk 0:00:05]}  e4 {[%clk 0:00:09]} 47. Kf2 {[%clk 0:00:05]}  e3+ {[%clk 0:00:09]} 48. Ke1 {[%clk 0:00:06]}  b4 {[%clk 0:00:09]} 49. g5 {[%clk 0:00:07]}  Bb5 {[%clk 0:00:08]} 50. Ra2 {[%clk 0:00:07]}  a4 {[%clk 0:00:07]} 51. Rb2 {[%clk 0:00:07]}  b3 {[%clk 0:00:06]} 52. h5 {[%clk 0:00:08]}  gxh5 {[%clk 0:00:06]} 53. Rh2 {[%clk 0:00:08]}  e2 {[%clk 0:00:05]} 54. Rxh5 {[%clk 0:00:08]}  Rd7 {[%clk 0:00:06]} 55. g6 {[%clk 0:00:08]}  Rd1+ {[%clk 0:00:05]} 56. Kf2 {[%clk 0:00:08]}  e1=Q+ {[%clk 0:00:06]} 57. Kf3 {[%clk 0:00:09]}  Rd3+ {[%clk 0:00:06]} 58. Kg4 {[%clk 0:00:10]}  Qg3+ {[%clk 0:00:06]} 59. Kf5 {[%clk 0:00:10]}  hxg6+ {[%clk 0:00:06]} 60. Ke6 {[%clk 0:00:11]}  Bd7+ {[%clk 0:00:05]} 61. Ke7 {[%clk 0:00:12]}  Qd6+ {[%clk 0:00:06]} 62. Kd8 {[%clk 0:00:12]}  Be6+ {[%clk 0:00:06]} 63. Ke8 {[%clk 0:00:12]}  Qd7# {[%clk 0:00:06]} 0-1


[Site "https://www.chess.com"]

[Event "Titled Tuesday Blitz June 14 Late 2022"]
[White "Bringas Gomez, Artai"]
[Black "Hambleton, Aman"]
[WhiteFideId "24534064"]
[BlackFideId "2606577"]
[WhiteElo "1988"]
[BlackElo "2552"]
[Result "1-0"]
[Round "07"]
[TimeControl "180+1"]
[Date "2022.06.14"]
[WhiteClock "0:00:22"]
[BlackClock "0:00:03"]

1. d4 {[%clk 0:02:20]}  Nf6 {[%clk 0:02:55]} 2. c4 {[%clk 0:02:21]}  e6 {[%clk 0:02:53]} 3. Nf3 {[%clk 0:02:20]}  b6 {[%clk 0:02:48]} 4. g3 {[%clk 0:02:20]}  Ba6 {[%clk 0:02:32]} 5. Nbd2 {[%clk 0:02:20]}  Bb4 {[%clk 0:02:27]} 6. Qc2 {[%clk 0:02:17]}  Bb7 {[%clk 0:02:04]} 7. Bg2 {[%clk 0:02:16]}  Be4 {[%clk 0:02:02]} 8. Qb3 {[%clk 0:02:14]}  Bxd2+ {[%clk 0:02:03]} 9. Bxd2 {[%clk 0:02:15]}  O-O {[%clk 0:02:02]} 10. O-O {[%clk 0:02:15]}  d6 {[%clk 0:01:57]} 11. Bh3 {[%clk 0:02:15]}  c5 {[%clk 0:01:46]} 12. Bc3 {[%clk 0:02:10]}  Nc6 {[%clk 0:01:34]} 13. dxc5 {[%clk 0:02:07]}  Bxf3 {[%clk 0:01:20]} 14. exf3 {[%clk 0:02:07]}  dxc5 {[%clk 0:01:20]} 15. Rad1 {[%clk 0:02:05]}  Qc7 {[%clk 0:01:16]} 16. f4 {[%clk 0:02:02]}  Rad8 {[%clk 0:01:15]} 17. Bg2 {[%clk 0:02:02]}  Rxd1 {[%clk 0:00:16]} 18. Rxd1 {[%clk 0:01:56]}  Rd8 {[%clk 0:00:16]} 19. Rxd8+ {[%clk 0:01:28]}  Nxd8 {[%clk 0:00:17]} 20. Qa4 {[%clk 0:01:17]}  Qd7 {[%clk 0:00:16]} 21. Qxd7 {[%clk 0:01:12]}  Nxd7 {[%clk 0:00:17]} 22. Kf1 {[%clk 0:01:11]}  Kf8 {[%clk 0:00:17]} 23. Ke2 {[%clk 0:01:12]}  g6 {[%clk 0:00:17]} 24. h4 {[%clk 0:01:12]}  h5 {[%clk 0:00:15]} 25. a3 {[%clk 0:01:09]}  Ke7 {[%clk 0:00:14]} 26. b4 {[%clk 0:01:09]}  Kd6 {[%clk 0:00:11]} 27. Kd3 {[%clk 0:01:08]}  Nc6 {[%clk 0:00:08]} 28. Bf3 {[%clk 0:00:50]}  Ne7 {[%clk 0:00:04]} 29. b5 {[%clk 0:00:47]}  Nf5 {[%clk 0:00:04]} 30. a4 {[%clk 0:00:46]}  e5 {[%clk 0:00:03]} 31. Bd5 {[%clk 0:00:45]}  exf4 {[%clk 0:00:03]} 32. gxf4 {[%clk 0:00:33]}  Ke7 {[%clk 0:00:02]} 33. a5 {[%clk 0:00:24]}  Nxh4 {[%clk 0:00:03]} 34. a6 {[%clk 0:00:24]}  Nf5 {[%clk 0:00:02]} 35. Bg2 {[%clk 0:00:21]}  Ke6 {[%clk 0:00:02]} 36. Bh3 {[%clk 0:00:21]}  Ke7 {[%clk 0:00:02]} 37. Ke4 {[%clk 0:00:20]}  Ke6 {[%clk 0:00:01]} 38. Bb2 {[%clk 0:00:18]}  f6 {[%clk 0:00:01]} 39. Bc3 {[%clk 0:00:19]}  Nf8 {[%clk 0:00:02]} 40. Ba5 {[%clk 0:00:12]}  Nd7 {[%clk 0:00:01]} 41. Bc3 {[%clk 0:00:12]}  Ke7 {[%clk 0:00:01]} 42. Bxf5 {[%clk 0:00:11]}  gxf5+ {[%clk 0:00:02]} 43. Kxf5 {[%clk 0:00:12]}  Kf7 {[%clk 0:00:03]} 44. f3 {[%clk 0:00:11]}  h4 {[%clk 0:00:02]} 45. Be1 {[%clk 0:00:11]}  h3 {[%clk 0:00:02]} 46. Bg3 {[%clk 0:00:12]}  Nf8 {[%clk 0:00:03]} 47. Kg4 {[%clk 0:00:12]}  Ne6 {[%clk 0:00:02]} 48. Kxh3 {[%clk 0:00:12]}  f5 {[%clk 0:00:03]} 49. Kh4 {[%clk 0:00:11]}  Kg6 {[%clk 0:00:03]} 50. Bh2 {[%clk 0:00:11]}  Nd4 {[%clk 0:00:03]} 51. Bg1 {[%clk 0:00:12]}  Nb3 {[%clk 0:00:03]} 52. Be3 {[%clk 0:00:11]}  Kh6 {[%clk 0:00:02]} 53. Kg3 {[%clk 0:00:11]}  Na5 {[%clk 0:00:02]} 54. Bxc5 {[%clk 0:00:10]}  Nxc4 {[%clk 0:00:02]} 55. Bd4 {[%clk 0:00:10]}  Na3 {[%clk 0:00:01]} 56. Bxb6 {[%clk 0:00:09]}  Nxb5 {[%clk 0:00:02]} 57. Bc5 {[%clk 0:00:10]}  Nc7 {[%clk 0:00:02]} 58. Bxa7 {[%clk 0:00:10]}  Nxa6 {[%clk 0:00:03]} 59. Bd4 {[%clk 0:00:10]}  Nb4 {[%clk 0:00:03]} 60. Be5 {[%clk 0:00:10]}  Nd3 {[%clk 0:00:03]} 61. Kg2 {[%clk 0:00:10]}  Kh5 {[%clk 0:00:03]} 62. Bd6 {[%clk 0:00:10]}  Nb2 {[%clk 0:00:03]} 63. Bb8 {[%clk 0:00:10]}  Nc4 {[%clk 0:00:04]} 64. Kf2 {[%clk 0:00:10]}  Nb6 {[%clk 0:00:04]} 65. Ke2 {[%clk 0:00:10]}  Nd5 {[%clk 0:00:05]} 66. Be5 {[%clk 0:00:10]}  Kh4 {[%clk 0:00:04]} 67. Kd3 {[%clk 0:00:10]}  Ne7 {[%clk 0:00:02]} 68. Bf6+ {[%clk 0:00:09]}  Kg3 {[%clk 0:00:02]} 69. Bxe7 {[%clk 0:00:10]}  Kxf4 {[%clk 0:00:02]} 70. Ke2 {[%clk 0:00:11]}  Ke5 {[%clk 0:00:01]} 71. Ba3 {[%clk 0:00:11]}  Kf4 {[%clk 0:00:02]} 72. Bc1+ {[%clk 0:00:12]}  Kg3 {[%clk 0:00:01]} 73. f4 {[%clk 0:00:12]}  Kg4 {[%clk 0:00:02]} 74. Kd3 {[%clk 0:00:13]}  Kh5 {[%clk 0:00:02]} 75. Kd4 {[%clk 0:00:14]}  Kg6 {[%clk 0:00:03]} 76. Ke5 {[%clk 0:00:15]}  Kf7 {[%clk 0:00:03]} 77. Kxf5 {[%clk 0:00:16]}  Kg7 {[%clk 0:00:03]} 78. Ke6 {[%clk 0:00:16]}  Kf8 {[%clk 0:00:03]} 79. f5 {[%clk 0:00:17]}  Kg7 {[%clk 0:00:03]} 80. f6+ {[%clk 0:00:18]}  Kf8 {[%clk 0:00:02]} 81. Bh6+ {[%clk 0:00:18]}  Kg8 {[%clk 0:00:03]} 82. f7+ {[%clk 0:00:19]}  Kh7 {[%clk 0:00:03]} 83. f8=Q {[%clk 0:00:20]}  Kg6 {[%clk 0:00:03]} 84. Qg7+ {[%clk 0:00:21]}  Kh5 {[%clk 0:00:03]} 85. Qg5# {[%clk 0:00:22]} 1-0


[Site "https://www.chess.com"]

[Event "Titled Tuesday Blitz June 14 Late 2022"]
[White "D`Arruda, Ricardo D."]
[Black "Lewtak, Damian"]
[WhiteFideId "100692"]
[BlackFideId "1141724"]
[WhiteElo "2493"]
[BlackElo "2379"]
[Result "1-0"]
[Round "07"]
[TimeControl "180+1"]
[Date "2022.06.15"]
[WhiteClock "0:00:06"]
[BlackClock "0:00:01"]

1. d4 {[%clk 0:03:00]}  b6 {[%clk 0:02:58]} 2. e4 {[%clk 0:03:00]}  Bb7 {[%clk 0:02:58]} 3. Nc3 {[%clk 0:03:00]}  g6 {[%clk 0:02:59]} 4. Nf3 {[%clk 0:02:59]}  Bg7 {[%clk 0:02:59]} 5. Bg5 {[%clk 0:02:58]}  h6 {[%clk 0:02:59]} 6. Bh4 {[%clk 0:02:57]}  g5 {[%clk 0:02:59]} 7. Bg3 {[%clk 0:02:56]}  e6 {[%clk 0:02:59]} 8. Qd2 {[%clk 0:02:52]}  Ne7 {[%clk 0:03:00]} 9. O-O-O {[%clk 0:02:50]}  Ng6 {[%clk 0:02:59]} 10. h4 {[%clk 0:02:45]}  g4 {[%clk 0:02:52]} 11. h5 {[%clk 0:02:45]}  gxf3 {[%clk 0:02:40]} 12. hxg6 {[%clk 0:02:44]}  fxg6 {[%clk 0:02:40]} 13. gxf3 {[%clk 0:02:44]}  Nc6 {[%clk 0:02:40]} 14. d5 {[%clk 0:02:34]}  Ne5 {[%clk 0:02:39]} 15. dxe6 {[%clk 0:02:24]}  dxe6 {[%clk 0:02:37]} 16. Qe2 {[%clk 0:02:21]}  Qf6 {[%clk 0:02:27]} 17. f4 {[%clk 0:02:20]}  Nf7 {[%clk 0:02:23]} 18. Bg2 {[%clk 0:02:07]}  Qe7 {[%clk 0:02:07]} 19. Qb5+ {[%clk 0:01:40]}  c6 {[%clk 0:02:04]} 20. Qc4 {[%clk 0:01:41]}  O-O {[%clk 0:01:51]} 21. Bh3 {[%clk 0:01:36]}  Rae8 {[%clk 0:01:45]} 22. e5 {[%clk 0:01:27]}  c5 {[%clk 0:01:36]} 23. Rhg1 {[%clk 0:01:27]}  Kh7 {[%clk 0:01:28]} 24. Ne4 {[%clk 0:01:24]}  b5 {[%clk 0:01:20]} 25. Qe2 {[%clk 0:01:23]}  Rd8 {[%clk 0:01:04]} 26. f3 {[%clk 0:01:15]}  Rd4 {[%clk 0:01:00]} 27. Bf2 {[%clk 0:01:06]}  Rxd1+ {[%clk 0:01:00]} 28. Rxd1 {[%clk 0:01:06]}  Bxe4 {[%clk 0:00:59]} 29. Qxe4 {[%clk 0:01:05]}  Rd8 {[%clk 0:00:28]} 30. Rg1 {[%clk 0:01:03]}  Nh8 {[%clk 0:00:28]} 31. Qc6 {[%clk 0:01:01]}  c4 {[%clk 0:00:23]} 32. Qxb5 {[%clk 0:00:57]}  Rc8 {[%clk 0:00:21]} 33. c3 {[%clk 0:00:51]}  Qf7 {[%clk 0:00:16]} 34. Be3 {[%clk 0:00:41]}  g5 {[%clk 0:00:16]} 35. Rd1 {[%clk 0:00:34]}  Rc7 {[%clk 0:00:11]} 36. Rd4 {[%clk 0:00:23]}  Ng6 {[%clk 0:00:10]} 37. Rxc4 {[%clk 0:00:18]}  gxf4 {[%clk 0:00:07]} 38. Rxc7 {[%clk 0:00:16]}  Qxc7 {[%clk 0:00:07]} 39. Bd4 {[%clk 0:00:14]}  Bxe5 {[%clk 0:00:07]} 40. Bxe5 {[%clk 0:00:12]}  Nxe5 {[%clk 0:00:08]} 41. Bxe6 {[%clk 0:00:11]}  Qd6 {[%clk 0:00:06]} 42. Qb7+ {[%clk 0:00:10]}  Kg6 {[%clk 0:00:06]} 43. Qe4+ {[%clk 0:00:08]}  Kf6 {[%clk 0:00:06]} 44. Bd5 {[%clk 0:00:09]}  Ng6 {[%clk 0:00:04]} 45. c4 {[%clk 0:00:09]}  h5 {[%clk 0:00:04]} 46. Qd4+ {[%clk 0:00:09]}  Kg5 {[%clk 0:00:03]} 47. c5 {[%clk 0:00:09]}  Qd8 {[%clk 0:00:02]} 48. c6 {[%clk 0:00:09]}  h4 {[%clk 0:00:03]} 49. Qc5 {[%clk 0:00:07]}  Ne5 {[%clk 0:00:01]} 50. Be6 {[%clk 0:00:06]} 1-0


[Site "https://www.chess.com"]

[Event "Titled Tuesday Blitz June 14 Late 2022"]
[White "Daggupati, Balaji"]
[Black "Pesotskiy, Mikhail"]
[WhiteFideId "2090759"]
[BlackFideId "34164453"]
[WhiteElo "2693"]
[BlackElo "2010"]
[Result "1-0"]
[Round "07"]
[TimeControl "180+1"]
[Date "2022.06.15"]
[WhiteClock "0:00:23"]
[BlackClock "0:00:11"]

1. e4 {[%clk 0:03:00]}  e6 {[%clk 0:02:57]} 2. d4 {[%clk 0:02:59]}  d5 {[%clk 0:02:57]} 3. Nc3 {[%clk 0:03:00]}  Bb4 {[%clk 0:02:53]} 4. e5 {[%clk 0:03:00]}  c5 {[%clk 0:02:52]} 5. a3 {[%clk 0:03:00]}  Bxc3+ {[%clk 0:02:53]} 6. bxc3 {[%clk 0:03:01]}  Qa5 {[%clk 0:02:54]} 7. Bd2 {[%clk 0:03:01]}  Qa4 {[%clk 0:02:54]} 8. Qg4 {[%clk 0:03:02]}  Kf8 {[%clk 0:02:55]} 9. Qd1 {[%clk 0:02:58]}  Ne7 {[%clk 0:02:52]} 10. Nf3 {[%clk 0:02:58]}  b6 {[%clk 0:02:50]} 11. h4 {[%clk 0:02:57]}  Ba6 {[%clk 0:02:49]} 12. Bxa6 {[%clk 0:02:55]}  Qxa6 {[%clk 0:02:45]} 13. h5 {[%clk 0:02:56]}  h6 {[%clk 0:02:44]} 14. a4 {[%clk 0:02:53]}  Nd7 {[%clk 0:02:36]} 15. Ng1 {[%clk 0:02:42]}  Rc8 {[%clk 0:02:25]} 16. Ne2 {[%clk 0:02:40]}  Kg8 {[%clk 0:02:11]} 17. O-O {[%clk 0:02:40]}  Qc4 {[%clk 0:02:07]} 18. Be3 {[%clk 0:01:53]}  Kh7 {[%clk 0:01:52]} 19. a5 {[%clk 0:01:50]}  cxd4 {[%clk 0:01:13]} 20. Bxd4 {[%clk 0:01:49]}  Nc6 {[%clk 0:01:05]} 21. axb6 {[%clk 0:01:44]}  axb6 {[%clk 0:01:06]} 22. f4 {[%clk 0:01:20]}  Nxd4 {[%clk 0:01:06]} 23. Nxd4 {[%clk 0:01:18]}  Qxc3 {[%clk 0:01:06]} 24. Kh2 {[%clk 0:01:07]}  Ra8 {[%clk 0:01:00]} 25. Rb1 {[%clk 0:01:01]}  Ra4 {[%clk 0:00:52]} 26. Nb5 {[%clk 0:00:58]}  Qe3 {[%clk 0:00:31]} 27. Rb3 {[%clk 0:00:53]}  Qc5 {[%clk 0:00:26]} 28. Nd6 {[%clk 0:00:53]}  Rf8 {[%clk 0:00:26]} 29. Qd3+ {[%clk 0:00:52]}  Kh8 {[%clk 0:00:26]} 30. Rc3 {[%clk 0:00:52]}  Qd4 {[%clk 0:00:25]} 31. Rc7 {[%clk 0:00:52]}  Nxe5 {[%clk 0:00:23]} 32. Qxd4 {[%clk 0:00:47]}  Ng4+ {[%clk 0:00:23]} 33. Kg3 {[%clk 0:00:47]}  Rxd4 {[%clk 0:00:24]} 34. Kxg4 {[%clk 0:00:48]}  Kg8 {[%clk 0:00:24]} 35. Kf3 {[%clk 0:00:42]}  Ra8 {[%clk 0:00:17]} 36. Nxf7 {[%clk 0:00:36]}  Ra3+ {[%clk 0:00:18]} 37. Kg4 {[%clk 0:00:35]}  Rd2 {[%clk 0:00:18]} 38. g3 {[%clk 0:00:33]}  Rg2 {[%clk 0:00:18]} 39. Rf3 {[%clk 0:00:33]}  Ra2 {[%clk 0:00:16]} 40. Ne5 {[%clk 0:00:29]}  Raxc2 {[%clk 0:00:16]} 41. Rb7 {[%clk 0:00:25]}  Rc8 {[%clk 0:00:10]} 42. Ra3 {[%clk 0:00:23]}  Re8 {[%clk 0:00:11]} 43. Raa7 {[%clk 0:00:23]} 1-0


[Site "https://www.chess.com"]

[Event "Titled Tuesday Blitz June 14 Late 2022"]
[White "Dubov, Daniil"]
[Black "Holt, Conrad"]
[WhiteFideId "24126055"]
[BlackFideId "2034387"]
[WhiteElo "2791"]
[BlackElo "2586"]
[Result "1/2-1/2"]
[Round "07"]
[TimeControl "180+1"]
[Date "2022.06.14"]
[WhiteClock "0:00:06"]
[BlackClock "0:00:07"]

1. d4 {[%clk 0:03:00]}  d5 {[%clk 0:02:59]} 2. Nf3 {[%clk 0:03:01]}  Nf6 {[%clk 0:03:00]} 3. c4 {[%clk 0:03:01]}  c6 {[%clk 0:02:59]} 4. cxd5 {[%clk 0:02:50]}  cxd5 {[%clk 0:02:59]} 5. Nc3 {[%clk 0:02:51]}  Nc6 {[%clk 0:02:59]} 6. Bf4 {[%clk 0:02:51]}  Nh5 {[%clk 0:02:57]} 7. Bd2 {[%clk 0:02:48]}  e6 {[%clk 0:02:57]} 8. Rc1 {[%clk 0:02:45]}  Bd6 {[%clk 0:02:54]} 9. e4 {[%clk 0:02:42]}  dxe4 {[%clk 0:02:54]} 10. Nxe4 {[%clk 0:02:43]}  Nf6 {[%clk 0:02:53]} 11. Nxf6+ {[%clk 0:02:41]}  Qxf6 {[%clk 0:02:50]} 12. Bd3 {[%clk 0:02:41]}  h6 {[%clk 0:02:34]} 13. O-O {[%clk 0:02:38]}  O-O {[%clk 0:02:31]} 14. Qe2 {[%clk 0:02:32]}  Bd7 {[%clk 0:02:20]} 15. Qe4 {[%clk 0:02:06]}  Qf5 {[%clk 0:02:19]} 16. Qxf5 {[%clk 0:02:03]}  exf5 {[%clk 0:02:18]} 17. Rfe1 {[%clk 0:01:59]}  Rac8 {[%clk 0:02:06]} 18. a3 {[%clk 0:01:54]}  Ne7 {[%clk 0:02:01]} 19. Bc4 {[%clk 0:01:42]}  Bc6 {[%clk 0:01:56]} 20. Ne5 {[%clk 0:00:56]}  Bd5 {[%clk 0:01:54]} 21. Bd3 {[%clk 0:00:52]}  Rfe8 {[%clk 0:01:42]} 22. Nc4 {[%clk 0:00:46]}  Bb8 {[%clk 0:01:36]} 23. Ne3 {[%clk 0:00:38]}  Be4 {[%clk 0:01:13]} 24. Bxe4 {[%clk 0:00:33]}  fxe4 {[%clk 0:01:13]} 25. d5 {[%clk 0:00:22]}  Bf4 {[%clk 0:01:05]} 26. Rxc8 {[%clk 0:00:13]}  Nxc8 {[%clk 0:00:51]} 27. Rc1 {[%clk 0:00:10]}  Nb6 {[%clk 0:00:50]} 28. g3 {[%clk 0:00:07]}  Be5 {[%clk 0:00:43]} 29. Nc4 {[%clk 0:00:03]}  Nxd5 {[%clk 0:00:38]} 30. Nxe5 {[%clk 0:00:03]}  Rxe5 {[%clk 0:00:38]} 31. Rc8+ {[%clk 0:00:03]}  Kh7 {[%clk 0:00:38]} 32. Rc5 {[%clk 0:00:04]}  b6 {[%clk 0:00:35]} 33. Rc6 {[%clk 0:00:04]}  Re7 {[%clk 0:00:30]} 34. Rd6 {[%clk 0:00:04]}  Nf6 {[%clk 0:00:27]} 35. Be3 {[%clk 0:00:04]}  Rd7 {[%clk 0:00:23]} 36. Rc6 {[%clk 0:00:04]}  Nd5 {[%clk 0:00:21]} 37. Bd2 {[%clk 0:00:03]}  Ne7 {[%clk 0:00:20]} 38. Rc2 {[%clk 0:00:03]}  Kg6 {[%clk 0:00:20]} 39. Kg2 {[%clk 0:00:03]}  Kf5 {[%clk 0:00:20]} 40. Be3 {[%clk 0:00:03]}  Ke6 {[%clk 0:00:20]} 41. h3 {[%clk 0:00:02]}  f5 {[%clk 0:00:20]} 42. Bd2 {[%clk 0:00:03]}  Rd6 {[%clk 0:00:14]} 43. h4 {[%clk 0:00:03]}  Rc6 {[%clk 0:00:14]} 44. Rxc6+ {[%clk 0:00:02]}  Nxc6 {[%clk 0:00:15]} 45. h5 {[%clk 0:00:03]}  Kf7 {[%clk 0:00:11]} 46. Bc3 {[%clk 0:00:04]}  g6 {[%clk 0:00:11]} 47. hxg6+ {[%clk 0:00:03]}  Kxg6 {[%clk 0:00:12]} 48. f3 {[%clk 0:00:04]}  Ne7 {[%clk 0:00:12]} 49. Kf2 {[%clk 0:00:03]}  Nd5 {[%clk 0:00:12]} 50. Bd2 {[%clk 0:00:04]}  exf3 {[%clk 0:00:13]} 51. Kxf3 {[%clk 0:00:04]}  h5 {[%clk 0:00:13]} 52. a4 {[%clk 0:00:04]}  Kf6 {[%clk 0:00:13]} 53. b4 {[%clk 0:00:04]}  a6 {[%clk 0:00:12]} 54. b5 {[%clk 0:00:04]}  axb5 {[%clk 0:00:12]} 55. axb5 {[%clk 0:00:05]}  Ke5 {[%clk 0:00:12]} 56. Be1 {[%clk 0:00:05]}  Kd4 {[%clk 0:00:12]} 57. Bf2+ {[%clk 0:00:05]}  Ke5 {[%clk 0:00:11]} 58. Bg1 {[%clk 0:00:05]}  Ke6 {[%clk 0:00:10]} 59. Bd4 {[%clk 0:00:05]}  Kf7 {[%clk 0:00:09]} 60. Bf2 {[%clk 0:00:05]}  Kg6 {[%clk 0:00:09]} 61. Bg1 {[%clk 0:00:05]}  Nc3 {[%clk 0:00:08]} 62. Bxb6 {[%clk 0:00:04]}  Nxb5 {[%clk 0:00:08]} 63. Bc5 {[%clk 0:00:05]}  Nc7 {[%clk 0:00:08]} 64. Bb6 {[%clk 0:00:05]}  Ne6 {[%clk 0:00:09]} 65. Ba7 {[%clk 0:00:05]}  Kf6 {[%clk 0:00:09]} 66. Bb8 {[%clk 0:00:05]}  Ke7 {[%clk 0:00:09]} 67. Kg2 {[%clk 0:00:05]}  Kd7 {[%clk 0:00:10]} 68. Kh3 {[%clk 0:00:05]}  Nd8 {[%clk 0:00:06]} 69. Kh4 {[%clk 0:00:04]}  Nc6 {[%clk 0:00:06]} 70. Kxh5 {[%clk 0:00:04]}  Nxb8 {[%clk 0:00:06]} 71. Kg5 {[%clk 0:00:05]}  Ke6 {[%clk 0:00:06]} 72. g4 {[%clk 0:00:05]}  fxg4 {[%clk 0:00:07]} 73. Kxg4 {[%clk 0:00:06]} 1/2-1/2


[Site "https://www.chess.com"]

[Event "Titled Tuesday Blitz June 14 Late 2022"]
[White "Harsh Suresh"]
[Black "Petrovic, Aleksa"]
[WhiteFideId "45018464"]
[BlackFideId "967629"]
[WhiteElo "2059"]
[BlackElo "2117"]
[Result "1-0"]
[Round "07"]
[TimeControl "180+1"]
[Date "2022.06.15"]
[WhiteClock "0:00:41"]
[BlackClock "0:00:05"]

1. e4 {[%clk 0:03:00]}  c6 {[%clk 0:02:57]} 2. d4 {[%clk 0:03:00]}  d5 {[%clk 0:02:57]} 3. e5 {[%clk 0:03:01]}  c5 {[%clk 0:02:57]} 4. c3 {[%clk 0:03:00]}  Nc6 {[%clk 0:02:55]} 5. Be3 {[%clk 0:02:52]}  Bf5 {[%clk 0:02:48]} 6. Nd2 {[%clk 0:02:51]}  e6 {[%clk 0:02:43]} 7. h4 {[%clk 0:02:48]}  cxd4 {[%clk 0:02:32]} 8. cxd4 {[%clk 0:02:44]}  Nb4 {[%clk 0:02:32]} 9. Bb5+ {[%clk 0:02:43]}  Ke7 {[%clk 0:02:20]} 10. g4 {[%clk 0:02:36]}  Nc2+ {[%clk 0:02:08]} 11. Kf1 {[%clk 0:02:34]}  Nxe3+ {[%clk 0:02:05]} 12. fxe3 {[%clk 0:02:33]}  Qa5 {[%clk 0:02:01]} 13. Be2 {[%clk 0:02:19]}  Bg6 {[%clk 0:01:51]} 14. h5 {[%clk 0:02:18]}  Be4 {[%clk 0:01:51]} 15. Nxe4 {[%clk 0:02:18]}  dxe4 {[%clk 0:01:52]} 16. Nh3 {[%clk 0:02:12]}  f6 {[%clk 0:01:43]} 17. Qb3 {[%clk 0:02:03]}  Qb6 {[%clk 0:01:37]} 18. Qxb6 {[%clk 0:01:52]}  axb6 {[%clk 0:01:38]} 19. Kf2 {[%clk 0:01:50]}  fxe5 {[%clk 0:01:34]} 20. dxe5 {[%clk 0:01:50]}  Ra5 {[%clk 0:01:32]} 21. Rhc1 {[%clk 0:01:48]}  Rxe5 {[%clk 0:01:26]} 22. Rc7+ {[%clk 0:01:47]}  Kd6 {[%clk 0:01:25]} 23. Rxb7 {[%clk 0:01:44]}  Kc6 {[%clk 0:01:25]} 24. Rb8 {[%clk 0:01:37]}  Nf6 {[%clk 0:01:10]} 25. Rc1+ {[%clk 0:01:27]}  Rc5 {[%clk 0:01:04]} 26. Rxc5+ {[%clk 0:01:28]}  bxc5 {[%clk 0:01:04]} 27. Ng5 {[%clk 0:01:18]}  Kc7 {[%clk 0:01:00]} 28. Rxf8 {[%clk 0:01:15]}  Nxg4+ {[%clk 0:00:55]} 29. Kg3 {[%clk 0:01:12]}  Rxf8 {[%clk 0:00:51]} 30. Nxe6+ {[%clk 0:01:12]}  Kd6 {[%clk 0:00:50]} 31. Nxf8 {[%clk 0:01:13]}  Nxe3 {[%clk 0:00:50]} 32. Kf4 {[%clk 0:01:12]}  Nd5+ {[%clk 0:00:44]} 33. Kxe4 {[%clk 0:01:12]}  Nf6+ {[%clk 0:00:41]} 34. Kf5 {[%clk 0:01:10]}  Ke7 {[%clk 0:00:41]} 35. Ne6 {[%clk 0:01:09]}  g6+ {[%clk 0:00:37]} 36. hxg6 {[%clk 0:01:07]}  hxg6+ {[%clk 0:00:38]} 37. Ke5 {[%clk 0:01:07]}  Nd7+ {[%clk 0:00:37]} 38. Kd5 {[%clk 0:00:54]}  Nf6+ {[%clk 0:00:31]} 39. Kxc5 {[%clk 0:00:54]}  Kxe6 {[%clk 0:00:31]} 40. a4 {[%clk 0:00:54]}  Nd7+ {[%clk 0:00:27]} 41. Kc6 {[%clk 0:00:52]}  Ne5+ {[%clk 0:00:27]} 42. Kb7 {[%clk 0:00:51]}  Kd6 {[%clk 0:00:20]} 43. a5 {[%clk 0:00:51]}  Kc5 {[%clk 0:00:18]} 44. a6 {[%clk 0:00:48]}  Nc6 {[%clk 0:00:17]} 45. b4+ {[%clk 0:00:47]}  Kd6 {[%clk 0:00:08]} 46. a7 {[%clk 0:00:44]}  Nd8+ {[%clk 0:00:05]} 47. Kc8 {[%clk 0:00:41]} 1-0


[Site "https://www.chess.com"]